Cogmind - Beta 14 @@@ ROGUE MODE // 2024.11.19 @ 01:04:27 Player: KURIIRI Result: Destroyed by as-06688 with Assembled Heavy Rifle Performance ------------- Evolutions (0) 0 Regions Visited (2) 400 Robots Destroyed (19) 95 Value Destroyed (475) 475 Prototype IDs (2) 40 Alien Tech Used (0) 0 Bonus (0) 0 TOTAL SCORE: 1010 Bonus ------- None Cogmind --------- Core Integrity 0/250 Matter 266/300 Energy 100/100 System Corruption 0% Temperature Cool (0) Movement Hovering (100) Location -10/Mines Parts ------- > --- POWER (1) -------- (None) > --- PROPULSION (2) --- Light Treads Combat Airjet > --- UTILITY (2) ------ Improved Targeting Computer > --- WEAPON (2) ------- Improved Assault Rifle > --- INVENTORY (5) ---- Heavy Ion Engine Hacking Suite Rocket Launcher Mini Grenade Launcher Hammer Peak State ------------ > --- POWER ------------ Heavy Ion Engine > --- PROPULSION ------- Light Treads Light Treads > --- UTILITY ---------- High-capacity Storage Unit Improved Targeting Computer > --- WEAPON ----------- Improved Assault Rifle Improved Assault Rifle > --- INVENTORY -------- Heavy Ion Engine Light Treads Improved Targeting Computer Hacking Suite EM Pulse Gun Assault Rifle Improved Assault Rifle Rocket Launcher Mini Grenade Launcher Datajack Hammer [Rating: 16] Favorites ----------- Power Heavy Ion Engine Engine Heavy Ion Engine Power Core Light Nuclear Core Propulsion Light Treads Treads Light Treads Hover Unit Combat Airjet Utility Improved Targeting Computer Storage High-capacity Storage Unit Processor Improved Targeting Computer Weapon EM Pulse Gun Energy Gun EM Pulse Gun Ballistic Gun Improved Assault Rifle Launcher Rocket Launcher Build | -11 -10 -10 ------- Run | Yrd Mat Min Slots Evolved . | . . . Power . | . . . Propulsion . | . . . Utility . | . . . Weapon . | . . . Parts Attached 20 | 6 7 7 Power 3 | 1 1 1 Engine 2 | 1 1 . Core 1 | . . 1 Reactor . | . . . Propulsion 4 | 2 . 2 Treads 3 | 2 . 1 Leg . | . . . Wheel . | . . . Hover 1 | . . 1 Flight . | . . . Utility 3 | 1 2 . Device . | . . . Storage 2 | 1 1 . Processor 1 | . 1 . Hackware . | . . . Protection . | . . . Artifact . | . . . Weapon 10 | 2 4 4 Energy Gun 3 | 1 2 . Energy Cannon . | . . . Ballistic Gun 5 | 1 1 3 Ballistic Cannon . | . . . Launcher 2 | . 1 1 Special Weapon . | . . . Impact Weapon . | . . . Slashing Weapon . | . . . Piercing Weapon . | . . . Special Melee Weapon . | . . . Unidentified Prototypes 2 | . 2 . Parts Lost 5 | . 1 4 Power 1 | . . 1 Propulsion 2 | . . 2 Utility . | . . . Weapon 2 | . 1 1 Highest Loss Streak 4 | . 1 4 To Critical Strikes . | . . . Average Slot Usage (%) 96 | . 96 97 Engine 12 | . 14 10 Core 1 | . . 3 Treads 27 | . 28 27 Storage 13 | . 14 13 Processor 11 | . 10 14 Energy Gun 16 | . 24 1 Ballistic Gun 10 | . 2 23 Peak Build Rating 16 | 6 13 16 Average Rating 11 | 4 10 15 On Entrance 6 | . 6 13 Naked Turns . | . . . Heaviest Build 54 | 14 54 54 Greatest Support 40 | 40 40 40 Greatest Overweight (x) 2 | . 1 2 Average Overweight (x) . | . . . Largest Inventory Capacity 20 | 8 20 20 Average Capacity 15 | 6 12 19 Most Carried 13 | 2 12 13 Average Carried 9 | . 8 10 Final Capacity 20 | 8 20 5 Final Carried 11 | 2 11 5 Class Distribution -------------------- 100% | Mutant Dominant Class ---------------- Mutant | -10/Materials Mutant | -10/Mines Resources | -11 -10 -10 ----------- Run | Yrd Mat Min Matter Collected 489 | 248 105 136 Remotely . | . . . Salvage Created 635 | . 492 143 Parts 48 | . 34 14 Haulers Intercepted 1 | . 1 . Recyclers Shooed . | . . . Parts Field Recycled . | . . . Retrieved Matter . | . . . Parts Self-Destructed . | . . . Prevented . | . . . Kills | -11 -10 -10 ------- Run | Yrd Mat Min Combat Hostiles Destroyed 13 | . 7 6 Guns 11 | . 5 6 AOE 2 | . 2 . Classes Destroyed 8 | . 5 3 Hauler 1 | . 1 . Recycler 2 | . 2 . Operator 2 | . 2 . Watcher 2 | . 2 . Swarmer 3 | . . 3 Grunt 7 | . 7 . Demolisher 2 | . . 2 Assembled 1 | . . 1 Best Kill Streak 5 | . 5 3 Combat Bots Only 3 | . 2 3 Max Kills in Single Turn 2 | . 1 2 Gunslinging 1 | . . 1 Exploded 1 | . 1 . Melee . | . . . Uniques/NPCs Destroyed . | . . . Combat | -11 -10 -10 -------- Run | Yrd Mat Min Hostile Shots Fired 86 | . 38 48 Missed 30 | . 16 14 Damage Taken 1086 | . 261 825 Core 254 | . 64 190 Absorbed by Shields . | . . . Core Remaining (%) 100 | 100 . . Volleys Fired 46 | . 33 13 Largest 2 | . 2 2 Hottest 80 | . 80 46 Shots Fired 85 | . 62 23 Gun 81 | . 59 22 Cannon . | . . . Launcher 4 | . 3 1 Special . | . . . Kinetic 33 | . 11 22 Thermal . | . . . Explosive 4 | . 3 1 Electromagnetic 48 | . 48 . Robot Hit Streak 8 | . 8 6 Robot Miss Streak 6 | . 6 1 Penetration Max . | . . . Secondary Targets 2 | . . 2 Max Gunslinging Chain 1 | . . 1 Shots Hit Robots 55 | . 38 17 Core Hits 35 | . 22 13 Critical Kills . | . . . Critical Parts Destroyed . | . . . Critical Strikes . | . . . Melee Attacks . | . . . Impact . | . . . Slashing . | . . . Piercing . | . . . Sneak Attacks . | . . . Combat Hostiles . | . . . Follow-up Attacks . | . . . Damage Inflicted 1155 | . 873 282 Guns 768 | . 510 258 Cannons . | . . . Explosions 380 | . 356 24 Melee . | . . . Ramming 7 | . 7 . Kinetic 318 | . 60 258 Thermal 102 | . 102 . Explosive 278 | . 254 24 Electromagnetic 450 | . 450 . Impact . | . . . Slashing . | . . . Piercing . | . . . Highest Corruption . | . . . Average Corruption . | . . . Corruption Purged . | . . . Corruption Blocked . | . . . Overload Shots . | . . . Overflow Damage . | . . . Projectiles . | . . . Explosions . | . . . Melee . | . . . Knockbacks . | . . . Impact . | . . . Kinetic . | . . . Secondary . | . . . Self-Inflicted Damage . | . . . Shots . | . . . Rammed 2 | . 2 . Targets Rammed 3 | . 3 . Kicked . | . . . Crushed 1 | . 1 . Highest Temperature 135 | . 135 . Average Temperature 39 | . 39 . Received Heat Transfer 144 | . 144 . Siege Activations . | . . . Robots Corrupted . | . . . Combat Hostiles . | . . . Parts Fried . | . . . Impact Corruptions . | . . . Robots Melted . | . . . Combat Hostiles . | . . . Parts Melted . | . . . Heat Transferred 50 | . 50 . Parts Sabotaged . | . . . Parts Stolen . | . . . Parts Stripped . | . . . Power Chain Reactions 3 | . 3 . Alert | -11 -10 -10 ------- Run | Yrd Mat Min Peak Influence 153 | . 153 115 Initial 45 | . . 45 Average 67 | . 68 73 Maximum Alert Level . | . . . Low Security (%) 100 | 100 100 100 Level 1 . | . . . Level 2 . | . . . Level 3 . | . . . Level 4 . | . . . Level 5 . | . . . High Security . | . . . Max Security . | . . . Squads Dispatched 5 | . 5 . Investigation 3 | . 3 . Extermination . | . . . Reinforcement 2 | . 2 . Assault . | . . . Garrison . | . . . Intercept . | . . . Searches Triggered . | . . . Construction Impeded . | . . . Haulers Reinforced . | . . . Active Scanning Responses . | . . . Cargo Convoy Interrupts . | . . . Stealth | -11 -10 -10 --------- Run | Yrd Mat Min Distress Signals 3 | . 3 . Communications Jammed . | . . . Distress Signals . | . . . Times Spotted 24 | . 15 9 Peak Tracking Total 4 | . 4 3 Tactical Retreats 2 | . 2 . Traps | -11 -10 -10 ------- Run | Yrd Mat Min Traps Triggered . | . . . Indirectly . | . . . Trap Hack Attempts . | . . . Triggered . | . . . Disarmed . | . . . Reprogrammed . | . . . Reused . | . . . Traps Extracted . | . . . Installed . | . . . Triggered . | . . . Machines | -11 -10 -10 ---------- Run | Yrd Mat Min Machines Disabled 3 | . 3 . Max in Single Turn 1 | . 1 . Machines Repaired . | . . . Machines Dismantled . | . . . Machines Sabotaged . | . . . Overloaded Fab Kills . | . . . Hacking | -11 -10 -10 --------- Run | Yrd Mat Min Machines Accessed 5 | . 4 1 Terminals 3 | . 3 . Fabricators . | . . . Repair Stations . | . . . Recycling Units 1 | . 1 . Scanalyzers . | . . . Garrison Access . | . . . Total Hacks 15 | . 14 1 Successful 5 | . 4 1 Failed 10 | . 10 . Catastrophic 2 | . 2 . Database Lockouts . | . . . Manual 11 | . 11 . Terminals 11 | . 11 . Fabricators . | . . . Repair Stations . | . . . Recycling Units 3 | . 3 . Scanalyzers . | . . . Garrison Access . | . . . Terminal Hacks 3 | . 2 1 Robot Analysis 2 | . 2 . Open Door 1 | . . 1 Fabricator Hacks . | . . . Repair Station Hacks . | . . . Recycling Unit Hacks . | . . . Scanalyzer . | . . . Garrison Access Hacks . | . . . Unauthorized Hacks 2 | . 2 . Terminals 1 | . 1 . Botnet 1 | . 1 . Fabricators . | . . . Repair Stations . | . . . Recycling Units 1 | . 1 . Tunnel 1 | . 1 . Scanalyzers . | . . . Garrison Access . | . . . Data Cores Recovered . | . . . Used . | . . . Hacking Detections 4 | . 4 . Full Trace Events 3 | . 3 . Feedback Events . | . . . Feedback Blocked . | . . . Robot Schematics Acquired . | . . . Robots Built . | . . . Authchips . | . . . Time . | . . . Total Robot Build Rating . | . . . Part Schematics Acquired . | . . . Parts Built . | . . . Authchips . | . . . Time . | . . . Total Part Build Rating . | . . . Parts Repaired . | . . . Time . | . . . Parts Recycled . | . . . Recycled Matter . | . . . Retrieved Matter . | . . . Retrieved Components . | . . . Parts Scanalyzed . | . . . Part Schematics Acquired . | . . . Parts Damaged . | . . . Bothacking | -11 -10 -10 ------------ Run | Yrd Mat Min Used RIF Installer . | . . . Robots Hacked . | . . . Non-combat . | . . . Combat . | . . . Robot Hacks Applied . | . . . Relay Couplers Released . | . . . Fabnet Peak Effective % . | . . . Robots Rewired . | . . . Allies Hacked . | . . . Hacks Repelled . | . . . Allies | -11 -10 -10 -------- Run | Yrd Mat Min Total Allies . | . . . Largest Group . | . . . Highest-Rated Group . | . . . Highest-Rated Ally . | . . . Total Orders . | . . . Ally Attacks . | . . . Total Damage . | . . . Kills . | . . . Allies Corrupted . | . . . Allies Melted . | . . . Intel | -11 -10 -10 ------- Run | Yrd Mat Min Robot Analysis Total 2 | . 2 . Derelict Logs Recovered . | . . . Drone Launches . | . . . Drone Recoveries . | . . . Exploration | -11 -10 -10 ------------- Run | Yrd Mat Min Turns Passed 1612 | 61 988 563 Spaces Moved 671 | 35 418 218 Core 4 | 4 . . Treads 662 | 31 418 213 Legs . | . . . Wheels . | . . . Hover 5 | . . 5 Flight . | . . . Fastest Speed 50 | 50 160 100 Average Speed 196 | 147 180 236 Slowest Speed 320 | 160 240 320 Overloaded Moves . | . . . Propulsion Burnouts . | . . . Robots Hopped . | . . . Cave-ins Triggered . | . . . Exploration Rate (%) 43 | 4 72 53 Regions Visited 2 Branch Regions 1 Pre-discovered Areas 1 | . 1 . Known Exits Taken . | . . . Unknown Exits Taken 2 | 1 1 . Scrap Searched . | . . . Spaces Dug . | . . . Terrain Destroyed 30 | . 20 10 Melee . | . . . Projectile . | . . . AOE 30 | . 20 10 Terrain Rammed . | . . . Walls Destroyed . | . . . Machines Disabled . | . . . Actions | -11 -10 -10 --------- Run | Yrd Mat Min Total 875 | 42 592 241 Wait 107 | . 107 . Move 669 | 34 417 218 Hop . | . . . Pick Up 18 | 2 16 . Fast Attach 9 | 6 2 1 Attach 4 | . 1 3 Detach 3 | . 1 2 Swap 7 | . 4 3 Drop 9 | . 8 1 Fire 46 | . 33 13 Melee . | . . . Ram . | . . . Kick . | . . . Crush 3 | . 3 . Escape Stasis . | . . . Rewire . | . . . Trap . | . . . Miscellaneous . | . . . Route ------- -11/Scrapyard -10/Materials (discovered 3 exits: [*Mat x2] / *Min) -10/Mines (discovered 1 exit: [*Mat]) History --------- Turn | Location | Event 3 | -11/Scrapyard | Discovered new exit (range 15) 62 | -11/Scrapyard | Entered Materials 95 | -10/Materials | Discovered new exit (range 16) 194 | -10/Materials | Discovered new exit (range 16) 312 | -10/Materials | Build established: Mutant 575 | -10/Materials | Discovered new exit (range 5) 1050 | -10/Materials | Entered Mines 1449 | -10/Mines | Met a Derelict who couldn't figure out how to use a Trap Extractor 1515 | -10/Mines | Discovered new exit (range 7) 1559 | -10/Mines | Assembled infested the area 1568 | -10/Mines | Core integrity fell below 50% 1596 | -10/Mines | Core integrity fell below 20% 1613 | -10/Mines | Destroyed by as-06688 with Assembled Heavy Rifle Last Messages --------------- 01592_ K-01 Serf collects debris. 01593_ The unstable cave ceiling collapses. 01594_ R-06 Scavenger collects Cmb. Airjet. 01595_ The unstable cave ceiling collapses. 01595_ K-01 Serf collects debris. 01596_ as-58254 destroyed. 01597_ Imp. Assault Rifle destroyed. 01597_ R-06 Scavenger collects Launcher Guidance Computer. 01599_ The unstable cave ceiling collapses. 01599_ K-01 Serf collects debris. 01599_ Lgt. Nuclear Core destroyed. 01602_ K-01 Serf collects debris. 01603_ The unstable cave ceiling collapses. 01603_ Dropped Hcp. Storage Unit. 01606_ K-01 Serf collects debris. 01607_ Acquired Cmb. Airjet. 01609_ K-01 Serf collects debris. 01611_ Acquired 113 matter. 01612_ K-01 Serf collects debris. Map ----- +----------------------------------------------------+ | ???????????????????????????????????????? | | ???????????????????????????????????????? | | ???????????????????????????????????????? | | ?????????????? ???????????????????????? | | ?????????????? ##### ????????????????? | | ?????????????? ???????????????? | | ?????????????? ????????????????? | | ?????????????? ?????????????????? | | ?????????????? ??????????????????? | | ?????????????? ???????????????????? | | ????????????## ????????????????????? | | ??????????### #????????????????????? | | ?????????### #????????????????????? | | ????????## ##????????????????????? | | ????????# # #????????????????????? | | ????????# #aa# #????????????????????? | | ????????## ## #?????????#??????????? | | ????????## !% # #????????## ?????????? | | ????????# # [!/ #???????## ?????????? | | ????????## [[ ##???????# ????????? | | ?????????## !% ##????????# #???????? | | ??????????# ! ##??????????# #?????## | | ?????????## ##????######## ####?# | | ????????## a #### #?# ### | | ???????## k #???# ## | | ??????## @ ##?????????# | | ?????## """ ##??????????## #### | | ?????# """ r ##???????????# #??? | | ?????# """ < #???????????# #??? | | ?????## #???????????# #??? | | ??????### ### ##???????????# #??? | | ????????# #?## ##????????????# #??? | | ????????# #??## ###???????????### #??? | | ????????# #???####?????????????# #??? | | ????????# ######???????????????# ####??? | | ????????# #???????????????# #?????? | | ????????# ### ####????????????# #?????? | | ????????# #?# ##??########## #?????? | | ????????# #?# ##?# #?????? | | ????????# ### ### #########?????? | | ????????# ## ##????????????? | | ????????#### ##???????????? | | ????????##### ## ##??????????? | | ???????##""## ### ##?????????? | | ???????#"*] X #?##### ##### #???? | | ???????#"] #?????## #???? | | ???????#"!!! ##?????## ######???? | | ???????#"!]! #?????## ##????????? | | ???????## # ###??## ###?????????? | | ????????## #### #### ##???????????? | +----------------------------------------------------+ Best States ------------- Heat Dissipation 25 Energy Generation 14 Energy Capacity 280 Matter Stores 300 Matter Capacity 300 Sight Range 16 Terrain Scan Density 10 Evasion (%) 45 Targeting Accuracy 6 Recoil Reduction 2 Item Schematics ----------------- None Robot Schematics ------------------ None Fabricated ------------ Nothing Alien Tech Used ----------------- None Achievements -------------- None Challenges ------------ None Game ------ Seed CryofiberParticlePropulsion Manual? 0 Play Time 00:10:30 Cumulative 182.5 hours Start 2024.11.19 @ 00:56:24 End 2024.11.19 @ 01:04:27 Sessions 1 Manual Loads 0 Difficulty Rogue Special Mode None Game No. 113 Rogue 77 Adventurer 36 Explorer 0 Win Type - Total 3 Types 2/0/0/1/0/0/0/0/0 Lore% 56 Gallery% 65 Achievement% 57 Wizard Run 0 Options --------- Layout 1 ASCII 0 Keyboard 0 Movement Numpad Keybinds 0 Fullscreen 1 Font 48/Smallcaps Map View 50x35 Zoom Use 0% Tactical HUD 1 Map Filters NONE Filters NONE Steam 1 RUN: f1a3b6ca-987f-42e2-ad89-54af4dc83e4c